fUSD/lending_fUSD_20240814
["ID","MTS","AMOUNT","RATE_DAILY","PERIOD"]
[334809785,1723602679131,-500.0,0.00014246,2]
[334809786,1723602679141,-500.0,0.00014246,2]
[334809787,1723602679150,-500.0,0.00014246,2]
[334809788,1723602679159,-500.0,0.00014246,2]
[334809789,1723602679169,-759.76,0.00014246,2]
[334809790,1723602679180,-500.0,0.00014246,2]
[334809791,1723602679189,-2078.92,0.00014246,2]
[334809792,1723602679199,-500.0,0.00014246,2]
[334809793,1723602679208,-500.0,0.00014246,2]
[334809794,1723602679217,-788.62,0.00014246,2]
[334809795,1723602679227,-500.0,0.00014246,2]
[334809796,1723602679236,-1032.2,0.00014246,2]
[334809797,1723602679246,-500.0,0.00014246,2]
[334809798,1723602679256,-1398.31,0.00014246,2]
[334809799,1723602679265,-500.0,0.00014246,2]
[334809800,1723602679275,-500.0,0.00014246,2]
[334809801,1723602679284,-500.0,0.00014246,2]
[334809802,1723602679294,-500.0,0.00014246,2]
[334809803,1723602679303,-514.11,0.00014246,2]
[334809804,1723602679313,-500.0,0.00014246,2]
[334809805,1723602679322,-2064.75,0.00014246,2]
[334809806,1723602679331,-2134.73,0.00014246,2]
[334809807,1723602679340,-500.0,0.00014246,2]
[334809808,1723602679350,-500.0,0.00014246,2]
[334809809,1723602679359,-500.0,0.00014246,2]
[334809810,1723602679368,-500.0,0.00014246,2]
[334809811,1723602679378,-530.44,0.00014246,2]
[334809812,1723602679388,-547.09627178,0.00014246,2]
[334809813,1723602679397,-575.87,0.00014246,2]
[334809814,1723602679407,-151.0,0.00014246,2]
[334809815,1723602679416,-276.237965,0.00014246,2]
[334809816,1723602679426,-752.31,0.00014246,2]
[334809817,1723602679435,-500.0,0.00014246,2]
[334809818,1723602679446,-500.0,0.00014246,2]
[334809819,1723602679456,-1274.53,0.00014246,2]
[334809820,1723602679465,-500.0,0.00014246,2]
[334809821,1723602679475,-500.0,0.00014246,2]
[334809822,1723602679484,-500.0,0.00014246,2]
[334809823,1723602679494,-500.0,0.00014246,2]
[334809824,1723602679503,-623.38,0.00014246,2]
[334809825,1723602679513,-500.0,0.00014246,2]
[334809826,1723602679522,-500.72246856,0.00014246,2]
[334809827,1723602679532,-500.0,0.00014246,2]
[334809828,1723602679541,-696.41,0.00014246,2]
[334809829,1723602679550,-500.0,0.00014246,2]
[334809830,1723602679560,-525.95,0.00014246,2]
[334809831,1723602679569,-500.0,0.00014246,2]
[334809832,1723602679584,-505.03869757,0.00014246,2]
[334809833,1723602679593,-559.57,0.00014246,2]
[334809834,1723602679603,-500.0,0.00014246,2]
[334809835,1723602679613,-500.0,0.00014246,2]
[334809836,1723602679623,-500.0,0.00014246,2]
[334809837,1723602679632,-500.0,0.00014246,2]
[334809838,1723602679642,-771.34,0.00014246,2]
[334809839,1723602679651,-500.0,0.00014246,2]
[334809840,1723602679661,-500.0,0.00014246,2]
[334809841,1723602679671,-500.0,0.00014246,2]
[334809842,1723602679684,-552.03827694,0.00014246,2]
[334809843,1723602679693,-592.36,0.00014246,2]
[334809844,1723602679703,-500.0,0.00014246,2]
[334809845,1723602679712,-500.0,0.00014246,2]
[334809846,1723602679814,-1944.59,0.00014246,2]
[334809847,1723602679824,-500.0,0.00014246,2]
[334809848,1723602679833,-500.0,0.00014246,2]
[334809849,1723602679842,-544.51,0.00014246,2]
[334809850,1723602679853,-500.0,0.00014246,2]
[334809851,1723602679862,-599.37,0.00014246,2]
[334809852,1723602679871,-500.0,0.00014246,2]
[334809853,1723602679880,-535.2,0.00014246,2]
[334809854,1723602679890,-500.0,0.00014246,2]
[334809855,1723602679899,-500.0,0.00014246,2]
[334809856,1723602679909,-500.0,0.00014246,2]
[334809857,1723602679918,-1600.56,0.00014246,2]
[334809858,1723602679929,-630.13925229,0.00014246,2]
[334809859,1723602679938,-151.0,0.00014246,2]
[334809860,1723602679948,-151.0,0.00014246,2]
[334809861,1723602679958,-1000.0,0.00014246,2]
[334809862,1723602679968,-500.0,0.00014246,2]
[334809863,1723602679978,-151.0,0.00014246,2]
[334809864,1723602679987,-500.0,0.00014246,2]
[334809865,1723602679996,-500.0,0.00014246,2]
[334809866,1723602680006,-883.73,0.00014246,2]
[334809867,1723602680015,-500.0,0.00014246,2]
[334809868,1723602680024,-500.0,0.00014246,2]
[334809869,1723602680034,-680.02,0.00014246,2]
[334809870,1723602680043,-500.0,0.00014246,2]
[334809871,1723602680052,-578.02,0.00014246,2]
[334809872,1723602680062,-215.1341561,0.00014246,2]
[334809873,1723602680072,-500.0,0.00014246,2]
[334809874,1723602680082,-500.0,0.00014246,2]
[334809875,1723602680092,-500.0,0.00014246,2]
[334809876,1723602680101,-500.0,0.00014246,2]
[334809877,1723602680110,-500.0,0.00014246,2]
[334809878,1723602680119,-500.0,0.00014246,2]
[334809879,1723602680129,-500.0,0.00014246,2]
[334809880,1723602680138,-585.83,0.00014246,2]
[334809881,1723602680147,-500.0,0.00014246,2]
[334809882,1723602680156,-400.0,0.00014246,2]
[334809883,1723602680166,-688.51,0.00014246,2]
[334809884,1723602680176,-500.0,0.00014246,2]
[334809885,1723602680186,-500.0,0.00014246,2]
[334809886,1723602680196,-500.0,0.00014246,2]
[334809887,1723602680205,-500.0,0.00014246,2]
[334809888,1723602680215,-500.0,0.00014246,2]
[334809889,1723602680225,-500.0,0.00014246,2]
[334809890,1723602680235,-500.0,0.00014246,2]
[334809891,1723602680244,-500.0,0.00014246,2]
[334809892,1723602680254,-151.0,0.00014246,2]
[334809893,1723602680264,-151.0,0.00014246,2]
[334809894,1723602680274,-151.0,0.00014246,2]
[334809895,1723602680283,-557.3601918,0.00014246,2]
[334809896,1723602680293,-500.0,0.00014246,2]
[334809897,1723602680302,-500.0,0.00014246,2]
[334809898,1723602680311,-751.25,0.00014246,2]
[334809899,1723602680320,-623.29,0.00014246,2]
[334809900,1723602680330,-500.0,0.00014246,2]
[334809901,1723602680339,-500.0,0.00014246,2]
[334809902,1723602680348,-1698.43,0.00014246,2]
[334809903,1723602680358,-500.0,0.00014246,2]
[334809904,1723602680369,-500.0,0.00014246,2]
[334809905,1723602680377,-541.4,0.00014246,2]
[334809906,1723602680387,-500.0,0.00014246,2]
[334809907,1723602680396,-177.39540333,0.00014246,2]
[334809908,1723602680404,-500.0,0.00014246,2]
[334809909,1723602680414,-500.0,0.00014246,2]
[334809910,1723602680423,-500.0,0.00014246,2]
[334809911,1723602680434,-500.0,0.00014246,2]
[334809912,1723602680443,-500.0,0.00014246,2]
[334809913,1723602680453,-500.0,0.00014246,2]
[334809914,1723602680463,-500.0,0.00014246,2]
[334809915,1723602680472,-644.69,0.00014246,2]
[334809916,1723602680481,-500.0,0.00014246,2]
[334809917,1723602680490,-599.99,0.00014246,2]
[334809918,1723602680499,-1649.11,0.00014246,2]
[334809919,1723602680508,-500.0,0.00014246,2]
[334809920,1723602680518,-500.0,0.00014246,2]
[334809921,1723602680527,-500.0,0.00014246,2]
[334809922,1723602680537,-500.0,0.00014246,2]
[334809923,1723602680547,-500.0,0.00014246,2]
[334809924,1723602680556,-253.21097308,0.00014246,2]
[334809925,1723602680567,-500.0,0.00014246,2]
[334809926,1723602680579,-500.0,0.00014246,2]
[334809927,1723602680588,-500.0,0.00014246,2]
[334809928,1723602680598,-500.0,0.00014246,2]
[334809929,1723602680608,-500.0,0.00014246,2]
[334809930,1723602680618,-500.0,0.00014246,2]
[334809931,1723602680625,-431.2131927,0.00014246,2]
[334809932,1723602680632,-567.46,0.00014246,2]
[334809933,1723602680640,-669.56,0.00014246,2]
[334809934,1723602680647,-500.0,0.00014246,2]
[334809935,1723602680657,-500.0,0.00014246,2]
[334809936,1723602680665,-151.0,0.00014246,2]
[334809937,1723602680671,-508.78,0.00014246,2]
[334809938,1723602680680,-151.0,0.00014246,2]
[334809939,1723602680690,-257.964745,0.00014246,2]
[334809940,1723602680699,-500.0,0.00014246,2]
[334809941,1723602680709,-2065.29,0.00014246,2]
[334809942,1723602680718,-151.0,0.00014246,2]
[334809943,1723602680728,-500.0,0.00014246,2]
[334809944,1723602680737,-500.0,0.00014246,2]
[334809945,1723602680746,-156.524604,0.00014246,2]
[334809946,1723602680755,-500.0,0.00014246,2]
[334809947,1723602680764,-300.0,0.00014246,2]
[334809948,1723602680774,-587.56,0.00014246,2]
[334809949,1723602680783,-500.0,0.00014246,2]
[334809950,1723602680792,-500.0,0.00014246,2]
[334809951,1723602680801,-1413.27,0.00014246,2]
[334809952,1723602680810,-500.0,0.00014246,2]
[334809953,1723602680820,-500.0,0.00014246,2]
[334809954,1723602680829,-500.0,0.00014246,2]
[334809955,1723602680838,-500.0,0.00014246,2]
[334809956,1723602680847,-500.0,0.00014246,2]
[334809957,1723602680856,-500.0,0.00014246,2]
[334809958,1723602680865,-677.97,0.00014246,2]
[334809959,1723602680876,-500.0,0.00014246,2]
[334809960,1723602680886,-1454.7,0.00014246,2]
[334809961,1723602680896,-500.0,0.00014246,2]
[334809962,1723602680906,-500.0,0.00014246,2]
[334809963,1723602680915,-500.0,0.00014246,2]
[334809964,1723602680924,-1891.58,0.00014246,2]
[334809965,1723602680933,-545.02,0.00014246,2]
[334809966,1723602680942,-589.4,0.00014246,2]
[334809967,1723602680953,-151.0,0.00014246,2]
[334809968,1723602680964,-151.0,0.00014246,2]
[334809969,1723602680974,-151.0,0.00014246,2]
[334809970,1723602680983,-500.0,0.00014246,2]
[334809971,1723602680992,-500.0,0.00014246,2]
[334809972,1723602681001,-1076.83,0.00014246,2]
[334809973,1723602681010,-500.0,0.00014246,2]
[334809974,1723602681019,-500.0,0.00014246,2]
[334809975,1723602681028,-221.030633,0.00014246,2]
[334809976,1723602681038,-505.42,0.00014246,2]
[334809977,1723602681047,-500.0,0.00014246,2]
[334809978,1723602681056,-829.93,0.00014246,2]
[334809979,1723602681066,-500.0,0.00014246,2]
[334809980,1723602681075,-500.0,0.00014246,2]
[334809981,1723602681084,-1153.14,0.00014246,2]
[334809982,1723602681094,-1200.57,0.00014246,2]
[334809983,1723602681103,-500.0,0.00014246,2]
[334809984,1723602681114,-151.0,0.00014246,2]
[334809985,1723602681123,-151.0,0.00014246,2]
[334809986,1723602681133,-841.45,0.00014246,2]
[334809987,1723602681143,-151.0,0.00014246,2]
[334809988,1723602681152,-500.0,0.00014246,2]
[334809989,1723602681162,-500.0,0.00014246,2]
[334809990,1723602681171,-525.92,0.00014246,2]
[334809991,1723602681181,-151.0,0.00014246,2]
[334809992,1723602681190,-500.0,0.00014246,2]
[334809993,1723602681199,-500.0,0.00014246,2]
[334809994,1723602681208,-151.0,0.00014246,2]
[334809995,1723602681218,-500.0,0.00014246,2]
[334809996,1723602681228,-151.0,0.00014246,2]
[334809997,1723602681237,-500.0,0.00014246,2]
[334809998,1723602681246,-500.0,0.00014246,2]
[334809999,1723602681255,-885.99,0.00014246,2]
[334810000,1723602681266,-500.0,0.00014246,2]
[334810001,1723602681275,-500.0,0.00014246,2]
[334810002,1723602681284,-500.0,0.00014246,2]
[334810003,1723602681293,-500.0,0.00014246,2]
[334810004,1723602681303,-619.18,0.00014246,2]
[334810005,1723602681312,-500.0,0.00014246,2]
[334810006,1723602681322,-731.53,0.00014246,2]
[334810007,1723602681330,-500.0,0.00014246,2]
[334810008,1723602681340,-747.97,0.00014246,2]
[334810009,1723602681350,-500.0,0.00014246,2]
[334810010,1723602681359,-500.0,0.00014246,2]
[334810011,1723602681369,-500.0,0.00014246,2]
[334810012,1723602681379,-500.0,0.00014246,2]
[334810013,1723602681389,-500.0,0.00014246,2]
[334810014,1723602681399,-500.0,0.00014246,2]
[334810015,1723602681408,-500.0,0.00014246,2]
[334810016,1723602681418,-500.0,0.00014246,2]
[334810017,1723602681428,-500.0,0.00014246,2]
[334810018,1723602681437,-1032.17,0.00014246,2]
[334810019,1723602681446,-500.0,0.00014246,2]
[334810020,1723602681455,-500.0,0.00014246,2]
[334810021,1723602681465,-500.0,0.00014246,2]
[334810022,1723602681474,-500.0,0.00014246,2]
[334810023,1723602681483,-1280.08,0.00014246,2]
[334810024,1723602681492,-961.87,0.00014246,2]
[334810025,1723602681501,-500.0,0.00014246,2]
[334810026,1723602681511,-578.13,0.00014246,2]
[334810027,1723602681520,-510.13,0.00014246,2]
[334810028,1723602681530,-521.42,0.00014246,2]
[334810029,1723602681540,-497.37443478,0.00014246,2]
[334810030,1723602681549,-500.0,0.00014246,2]
[334810031,1723602681559,-500.0,0.00014246,2]
[334810032,1723602681569,-500.0,0.00014246,2]
[334810033,1723602681583,-500.0,0.00014246,2]
[334810034,1723602681592,-500.0,0.00014246,2]
[334810035,1723602681601,-500.0,0.00014246,2]
[334810036,1723602681611,-1525.29,0.00014246,2]
[334810037,1723602681622,-500.0,0.00014246,2]
[334810038,1723602681633,-2385.46,0.00014246,2]
[334810039,1723602681643,-500.0,0.00014246,2]
[334810040,1723602681653,-4312.41,0.00014246,2]
[334810041,1723602681663,-500.0,0.00014246,2]
[334810042,1723602681673,-500.0,0.00014246,2]
[334810043,1723602681682,-915.83,0.00014246,2]
[334810044,1723602681691,-500.0,0.00014246,2]
[334810045,1723602681700,-500.0,0.00014246,2]
[334810046,1723602681710,-500.0,0.00014246,2]
[334810047,1723602681719,-500.0,0.00014246,2]
[334810048,1723602681729,-534.86,0.00014246,2]
[334810049,1723602681739,-500.0,0.00014246,2]
[334810050,1723602681748,-842.65,0.00014246,2]
[334810051,1723602681758,-500.43583218,0.00014246,2]
[334810052,1723602681768,-626.3,0.00014246,2]
[334810053,1723602681777,-500.0,0.00014246,2]
[334810054,1723602681787,-500.0,0.00014246,2]
[334810055,1723602681796,-2638.2,0.00014246,2]
[334810056,1723602681806,-500.0,0.00014246,2]
[334810057,1723602681816,-500.0,0.00014246,2]
[334810058,1723602681826,-500.0,0.00014246,2]
[334810059,1723602681835,-500.0,0.00014246,2]
[334810060,1723602681845,-500.0,0.00014246,2]
[334810061,1723602681854,-1609.59,0.00014246,2]
[334810062,1723602681864,-500.0,0.00014246,2]
[334810063,1723602681873,-2782.48,0.00014246,2]
[334810064,1723602681882,-500.0,0.00014246,2]
[334810065,1723602681891,-500.0,0.00014246,2]
[334810066,1723602681901,-500.0,0.00014246,2]
[334810067,1723602681910,-500.0,0.00014246,2]
[334810068,1723602681919,-500.0,0.00014246,2]
[334810069,1723602681929,-500.0,0.00014246,2]
[334810070,1723602681939,-500.0,0.00014246,2]
[334810071,1723602681948,-500.0,0.00014246,2]
[334810072,1723602681957,-500.0,0.00014246,2]
[334810073,1723602681967,-636.4,0.00014246,2]
[334810074,1723602681976,-500.0,0.00014246,2]
[334810075,1723602681985,-151.0,0.00014246,2]
[334810076,1723602681994,-500.0,0.00014246,2]
[334810077,1723602682004,-277.614097,0.00014246,2]
[334810078,1723602682013,-5329.46,0.00014246,2]
[334810079,1723602682022,-500.0,0.00014246,2]
[334810080,1723602682032,-500.0,0.00014246,2]
[334810081,1723602682041,-2907.46,0.00014246,2]
[334810082,1723602682051,-1034.2,0.00014246,2]
[334810083,1723602682060,-500.0,0.00014246,2]
[334810084,1723602682070,-562.7,0.00014246,2]
[334810085,1723602682080,-1210.81,0.00014246,2]
[334810086,1723602682089,-500.0,0.00014246,2]
[334810087,1723602682099,-500.0,0.00014246,2]
[334810088,1723602682108,-500.0,0.00014246,2]
[334810089,1723602682117,-500.0,0.00014246,2]
[334810090,1723602682126,-836.69,0.00014246,2]
[334810091,1723602682135,-500.0,0.00014246,2]
[334810092,1723602682145,-500.0,0.00014246,2]
[334810093,1723602682154,-386.10001252,0.00014246,2]
[334810094,1723602682163,-500.0,0.00014246,2]
[334810095,1723602682172,-667.48,0.00014246,2]
[334810096,1723602682182,-1963.06,0.00014246,2]
[334810097,1723602682191,-4981.44,0.00014246,2]
[334810098,1723602682200,-500.0,0.00014246,2]
[334810099,1723602682210,-500.0,0.00014246,2]
[334810100,1723602682219,-500.0,0.00014246,2]
[334810101,1723602682229,-770.56,0.00014246,2]
[334810102,1723602682238,-2526.98,0.00014246,2]
[334810103,1723602682248,-500.0,0.00014246,2]
[334810104,1723602682257,-949.12,0.00014246,2]
[334810105,1723602682267,-500.0,0.00014246,2]
[334810106,1723602682277,-1359.66,0.00014246,2]
[334810107,1723602682286,-500.0,0.00014246,2]
[334810108,1723602682295,-500.0,0.00014246,2]
[334810109,1723602682305,-500.0,0.00014246,2]
[334810110,1723602682315,-500.0,0.00014246,2]
[334810111,1723602682324,-504.84,0.00014246,2]
[334810112,1723602682334,-1456.45,0.00014246,2]
[334810113,1723602682343,-500.0,0.00014246,2]
[334810114,1723602682353,-500.0,0.00014246,2]
[334810115,1723602682362,-500.0,0.00014246,2]
[334810116,1723602682372,-6307.85,0.00014246,2]
[334810117,1723602682382,-884.35,0.00014246,2]
[334810118,1723602682391,-500.0,0.00014246,2]
[334810119,1723602682401,-550.92,0.00014246,2]
[334810120,1723602682411,-500.0,0.00014246,2]
[334810121,1723602682421,-1000.0,0.00014246,2]
[334810122,1723602682431,-500.0,0.00014246,2]
[334810123,1723602682441,-500.0,0.00014246,2]
[334810124,1723602682450,-643.55164021,0.00014246,2]
[334810125,1723602682459,-500.0,0.00014246,2]
[334810126,1723602682469,-559.42,0.00014246,2]
[334810127,1723602682479,-500.0,0.00014246,2]
[334810128,1723602682488,-644.26,0.00014246,2]
[334810129,1723602682499,-501.90790258,0.00014246,2]
[334810130,1723602682510,-4466.82,0.00014246,2]
[334810131,1723602682521,-6959.5,0.00014246,2]
[334810132,1723602682531,-654.94,0.00014246,2]
[334810133,1723602682541,-500.0,0.00014246,2]
[334810134,1723602682551,-763.62,0.00014246,2]
[334810135,1723602682560,-1916.46,0.00014246,2]
[334810136,1723602682570,-500.0,0.00014246,2]
[334810137,1723602682584,-500.0,0.00014246,2]
[334810138,1723602682594,-1638.1,0.00014246,2]
[334810139,1723602682604,-533.42,0.00014246,2]
[334810140,1723602682614,-500.0,0.00014246,2]
[334810141,1723602682626,-500.0,0.00014246,2]
[334810142,1723602682635,-500.0,0.00014246,2]
[334810143,1723602682645,-500.0,0.00014246,2]
[334810144,1723602682657,-500.0,0.00014246,2]
[334810145,1723602682668,-1042.18,0.00014246,2]
[334810146,1723602682678,-500.0,0.00014246,2]
[334810147,1723602682688,-500.0,0.00014246,2]
[334810148,1723602682698,-3604.66,0.00014246,2]
[334810149,1723602682707,-502.13,0.00014246,2]
[334810150,1723602682717,-681.42,0.00014246,2]
[334810151,1723602682727,-1357.05,0.00014246,2]
[334810152,1723602682737,-500.0,0.00014246,2]
[334810153,1723602682748,-500.0,0.00014246,2]
[334810154,1723602682760,-500.0,0.00014246,2]
[334810155,1723602682770,-500.0,0.00014246,2]
[334810156,1723602682780,-2243.59,0.00014246,2]
[334810157,1723602682790,-500.0,0.00014246,2]
[334810158,1723602682800,-500.0,0.00014246,2]
[334810159,1723602682810,-928.88,0.00014246,2]
[334810160,1723602682820,-500.0,0.00014246,2]
[334810161,1723602682830,-500.0,0.00014246,2]
[334810162,1723602682840,-1262.07,0.00014246,2]
[334810163,1723602682850,-1077.03,0.00014246,2]
[334810164,1723602682860,-500.0,0.00014246,2]
[334810165,1723602682870,-500.0,0.00014246,2]
[334810166,1723602682879,-500.0,0.00014246,2]
[334810167,1723602682890,-500.0,0.00014246,2]
[334810168,1723602682900,-902.66,0.00014246,2]
[334810169,1723602682909,-151.0,0.00014246,2]
[334810170,1723602682919,-960.83,0.00014246,2]
[334810171,1723602682929,-2208.6,0.00014246,2]
[334810172,1723602682939,-197.179986,0.00014246,2]
[334810173,1723602682949,-541.94,0.00014246,2]
[334810174,1723602682959,-500.0,0.00014246,2]
[334810175,1723602682971,-1854.28,0.00014246,2]
[334810176,1723602682980,-500.0,0.00014246,2]
[334810177,1723602682991,-439.61273463,0.00014246,2]
[334810178,1723602683001,-500.0,0.00014246,2]
[334810179,1723602683010,-500.0,0.00014246,2]
[334810180,1723602683020,-500.0,0.00014246,2]
[334810181,1723602683030,-500.0,0.00014246,2]
[334810182,1723602683040,-500.0,0.00014246,2]
[334810183,1723602683050,-4353.35,0.00014246,2]
[334810184,1723602683060,-733.57,0.00014246,2]
[334810185,1723602683070,-1805.38,0.00014246,2]
[334810186,1723602683079,-500.0,0.00014246,2]
[334810187,1723602683089,-646.39,0.00014246,2]
[334810188,1723602683099,-1077.42,0.00014246,2]
[334810189,1723602683108,-500.0,0.00014246,2]
[334810190,1723602683118,-500.0,0.00014246,2]
[334810191,1723602683127,-500.0,0.00014246,2]
[334810192,1723602683136,-500.0,0.00014246,2]
[334810193,1723602683146,-500.0,0.00014246,2]
[334810194,1723602683155,-500.0,0.00014246,2]
[334810195,1723602683165,-500.0,0.00014246,2]
[334810196,1723602683174,-968.21,0.00014246,2]
[334810197,1723602683183,-500.0,0.00014246,2]
[334810198,1723602683192,-500.0,0.00014246,2]
[334810199,1723602683202,-500.0,0.00014246,2]
[334810200,1723602683211,-3140.34,0.00014246,2]
[334810201,1723602683220,-500.0,0.00014246,2]
[334810202,1723602683230,-587.66,0.00014246,2]
[334810203,1723602683240,-500.0,0.00014246,2]
[334810204,1723602683249,-150.0,0.00014246,2]
[334810205,1723602683259,-2924.33,0.00014246,2]
[334810206,1723602683268,-500.0,0.00014246,2]
[334810207,1723602683278,-500.0,0.00014246,2]
[334810208,1723602683288,-788.44,0.00014246,2]
[334810209,1723602683297,-617.34,0.00014246,2]
[334810210,1723602683306,-1229.56,0.00014246,2]
[334810211,1723602683316,-500.0,0.00014246,2]
[334810212,1723602683325,-500.0,0.00014246,2]
[334810213,1723602683335,-882.24,0.00014246,2]
[334810214,1723602683344,-500.0,0.00014246,2]
[334810215,1723602683353,-500.0,0.00014246,2]
[334810216,1723602683363,-1869.03,0.00014246,2]
[334810217,1723602683373,-500.0,0.00014246,2]
[334810218,1723602683382,-1665.15,0.00014246,2]
[334810219,1723602683392,-500.0,0.00014246,2]
[334810220,1723602683401,-500.0,0.00014246,2]
[334810221,1723602683411,-500.0,0.00014246,2]
[334810222,1723602683420,-1247.42,0.00014246,2]
[334810223,1723602683430,-1275.57,0.00014246,2]
[334810224,1723602683439,-500.0,0.00014246,2]
[334810225,1723602683449,-500.0,0.00014246,2]
[334810226,1723602683458,-500.0,0.00014246,2]
[334810227,1723602683467,-500.0,0.00014246,2]
[334810228,1723602683477,-500.0,0.00014246,2]
[334810229,1723602683486,-500.0,0.00014246,2]
[334810230,1723602683496,-500.0,0.00014246,2]
[334810231,1723602683505,-500.0,0.00014246,2]
[334810232,1723602683514,-618.67,0.00014246,2]
[334810233,1723602683524,-520.11856341,0.00014246,2]
[334810234,1723602683533,-1871.57,0.00014246,2]
[334810235,1723602683543,-500.0,0.00014246,2]
[334810236,1723602683552,-500.0,0.00014246,2]
[334810237,1723602683561,-1197.77,0.00014246,2]
[334810238,1723602683571,-500.0,0.00014246,2]
[334810239,1723602683585,-2349.02,0.00014246,2]
[334810240,1723602683595,-500.0,0.00014246,2]
[334810241,1723602683605,-500.0,0.00014246,2]
[334810242,1723602683614,-1090.83,0.00014246,2]
[334810243,1723602683625,-500.0,0.00014246,2]
[334810244,1723602683635,-500.0,0.00014246,2]
[334810245,1723602683645,-500.0,0.00014246,2]
[334810246,1723602683656,-1052.13,0.00014246,2]
[334810247,1723602683666,-500.0,0.00014246,2]
[334810248,1723602683676,-3200.18,0.00014246,2]
[334810249,1723602683686,-2895.14,0.00014246,2]
[334810250,1723602683696,-500.0,0.00014246,2]
[334810251,1723602683705,-500.0,0.00014246,2]
[334810252,1723602683715,-500.0,0.00014246,2]
[334810253,1723602683725,-500.0,0.00014246,2]
[334810254,1723602683735,-605.15,0.00014246,2]
[334810255,1723602683745,-500.0,0.00014246,2]
[334810256,1723602683755,-537.1061371,0.00014246,2]
[334810257,1723602683765,-4446.29,0.00014246,2]
[334810258,1723602683775,-500.0,0.00014246,2]
[334810259,1723602683785,-500.0,0.00014246,2]
[334810260,1723602683795,-500.0,0.00014246,2]
[334810261,1723602683806,-500.0,0.00014246,2]
[334810262,1723602683816,-7040.72,0.00014246,2]
[334810263,1723602683826,-500.0,0.00014246,2]
[334810264,1723602683835,-500.0,0.00014246,2]
[334810265,1723602683845,-500.0,0.00014246,2]
[334810266,1723602683855,-500.0,0.00014246,2]
[334810267,1723602683865,-800.41,0.00014246,2]
[334810268,1723602683875,-500.0,0.00014246,2]
[334810269,1723602683884,-2509.91,0.00014246,2]
[334810270,1723602683894,-151.0,0.00014246,2]
[334810271,1723602683904,-500.0,0.00014246,2]
[334810272,1723602683913,-562.14,0.00014246,2]
[334810273,1723602683923,-500.0,0.00014246,2]
[334810274,1723602683934,-548.73,0.00014246,2]
[334810275,1723602683944,-500.0,0.00014246,2]
[334810276,1723602683953,-526.56,0.00014246,2]
[334810277,1723602683963,-500.0,0.00014246,2]
[334810278,1723602683972,-861.17,0.00014246,2]
[334810279,1723602683982,-500.0,0.00014246,2]
[334810280,1723602683991,-1302.56,0.00014246,2]
[334810281,1723602684001,-500.0,0.00014246,2]
[334810282,1723602684011,-500.0,0.00014246,2]
[334810283,1723602684020,-500.0,0.00014246,2]
[334810284,1723602684030,-1664.02,0.00014246,2]